fUST/lending_fUST_20240216
["ID","MTS","AMOUNT","RATE_DAILY","PERIOD"]
[314168435,1708039845155,-2918.8,0.00022191,2]
[314168437,1708039845164,-500.0,0.00022191,2]
[314168439,1708039845173,-3326.07,0.00022191,2]
[314168441,1708039845182,-500.0,0.00022191,2]
[314168443,1708039845191,-500.0,0.00022191,2]
[314168445,1708039845205,-396.931354,0.00022191,2]
[314168447,1708039845214,-396.931354,0.00022191,2]
[314168449,1708039845223,-396.931354,0.00022191,2]
[314168451,1708039845232,-396.931354,0.00022191,2]
[314168453,1708039845242,-500.0,0.00022191,2]
[314168455,1708039845251,-396.931354,0.00022191,2]
[314168457,1708039845260,-396.931354,0.00022191,2]
[314168459,1708039845269,-396.931354,0.00022191,2]
[314168461,1708039845279,-396.931354,0.00022191,2]
[314168463,1708039845288,-582.01731099,0.00022191,2]
[314168465,1708039845297,-350.39873505,0.00022191,2]
[314168511,1708039845730,-500.0,0.00021917,2]
[314168514,1708039845740,-645.68833248,0.0002211,2]
[314168515,1708039845750,-149.60126495,0.00022191,2]
[314168518,1708039845759,-500.0,0.00022191,2]
[314168519,1708039845769,-500.0,0.00022191,2]
[314168521,1708039845778,-1425.62,0.00022191,2]
[314168523,1708039845787,-500.0,0.00022191,2]
[314168525,1708039845796,-214.835383,0.00022191,2]
[314168527,1708039845805,-299.7793915,0.00022191,2]
[314168529,1708039845814,-18100.04,0.00022191,2]
[314168531,1708039845823,-500.0,0.00022191,2]
[314168533,1708039845833,-500.0,0.00022191,2]
[314168535,1708039845842,-935.84,0.00022191,2]
[314168537,1708039845851,-500.0,0.00022191,2]
[314168539,1708039845860,-533.23,0.00022191,2]
[314168541,1708039845869,-2823.76,0.00022191,2]
[314168543,1708039845878,-1328.79,0.00022191,2]
[314168545,1708039845887,-517.88,0.00022191,2]
[314168547,1708039845897,-16468.03,0.00022191,2]
[314168549,1708039845906,-500.0,0.00022191,2]
[314168551,1708039845914,-14374.16,0.00022191,2]
[314168553,1708039845923,-500.0,0.00022191,2]
[314168555,1708039845932,-500.0,0.00022191,2]
[314168557,1708039845942,-517.90054454,0.00022191,2]
[314168559,1708039845950,-6241.88,0.00022191,2]
[314168561,1708039845959,-500.0,0.00022191,2]
[314168563,1708039845968,-23583.74,0.00022191,2]
[314168565,1708039845977,-500.0,0.00022191,2]
[314168566,1708039845987,-2340.4,0.00022191,2]
[314168568,1708039845997,-500.0,0.00022191,2]
[314168570,1708039846006,-502.82677952,0.00022191,2]
[314168572,1708039846015,-275.60805396,0.00022191,2]
[314168574,1708039846025,-826.92,0.00022191,2]
[314168576,1708039846034,-1742.09,0.00022191,2]
[314168578,1708039846044,-500.0,0.00022191,2]
[314168580,1708039846053,-307.6104457,0.00022192,2]
[314168582,1708039846062,-153.0,0.00022192,2]
[314168584,1708039846072,-160.1663701,0.00022192,2]
[314168586,1708039846082,-243.9943227,0.00022192,2]
[314168588,1708039846091,-153.0,0.00022192,2]
[314168590,1708039846101,-153.0,0.00022192,2]
[314168592,1708039846110,-5000.0,0.00022194,2]
[314168594,1708039846119,-50000.0,0.00022194,2]
[314168596,1708039846128,-50000.0,0.00022194,2]
[314168598,1708039846137,-53159.89365753,0.00022194,2]
[314168600,1708039846146,-50000.0,0.00022194,2]
[314168602,1708039846155,-50000.0,0.00022194,2]
[314168604,1708039846163,-5000.0,0.00022194,2]
[314168606,1708039846172,-5000.0,0.00022194,2]
[314168608,1708039846181,-459.889157,0.00022194,2]
[314168610,1708039846190,-459.88915455,0.00022194,2]
[314168612,1708039846201,-396.931354,0.00022194,2]
[314168614,1708039846210,-396.931345,0.00022194,2]
[314168616,1708039846219,-18533.75411551,0.00022219,2]
[314168618,1708039846228,-200.0,0.00022251,7]
[314168620,1708039846237,-200.0,0.00022251,7]
[314168622,1708039846246,-620.65230812,0.00022302,2]
[314168629,1708039846308,-1515.6016208,0.00022341,2]
[314168631,1708039846318,-417.08151988,0.00022342,2]
[314168633,1708039846327,-500.0,0.00022375,2]
[314168635,1708039846336,-500.0,0.00022385,2]
[314168637,1708039846345,-500.0,0.00022385,2]
[314168639,1708039846354,-500.0,0.00022385,2]
[314168641,1708039846364,-500.0,0.00022385,2]
[314168643,1708039846373,-500.0,0.00022385,2]
[314168645,1708039846382,-500.0,0.00022385,2]
[314168646,1708039846392,-500.0,0.00022385,2]
[314168648,1708039846401,-500.0,0.00022385,2]
[314168650,1708039846410,-500.0,0.00022385,2]
[314168652,1708039846419,-332.02644429,0.00022385,2]
[314168654,1708039846428,-500.0,0.00022385,2]
[314168656,1708039846437,-500.0,0.00022385,2]
[314168658,1708039846446,-500.0,0.00022385,2]
[314168660,1708039846455,-532.59,0.00022385,2]
[314168662,1708039846464,-500.0,0.00022385,2]
[314168664,1708039846474,-500.0,0.00022385,2]
[314168666,1708039846483,-300.0,0.0002244,2]
[314168668,1708039846491,-1072.62,0.00022465,2]
[314168670,1708039846500,-500.0,0.00022465,2]
[314168672,1708039846509,-500.0,0.00022465,2]
[314168674,1708039846518,-500.0,0.00022465,2]
[314168676,1708039846527,-500.0,0.00022465,2]
[314168678,1708039846536,-500.0,0.00022465,2]
[314168680,1708039846545,-500.0,0.00022465,2]
[314168682,1708039846554,-500.0,0.00022465,2]
[314168683,1708039846565,-500.0,0.00022465,2]
[314168686,1708039846575,-500.0,0.00022465,2]
[314168687,1708039846585,-1237.71,0.00022465,2]
[314168689,1708039846594,-500.0,0.00022465,2]
[314168691,1708039846603,-507.8299765,0.00022465,2]
[314168693,1708039846613,-500.0,0.00022465,2]
[314168695,1708039846622,-500.0,0.00022465,2]
[314168697,1708039846631,-3540.74,0.00022465,2]
[314168699,1708039846640,-1999.91,0.00022465,2]
[314168700,1708039846649,-2180.05,0.00022465,2]
[314168701,1708039846658,-500.0,0.00022465,2]
[314168702,1708039846667,-540.61840804,0.00022465,2]
[314168703,1708039846675,-3504.95,0.00022465,2]
[314168704,1708039846684,-521.3877079,0.00022465,2]
[314168705,1708039846693,-500.0,0.00022465,2]
[314168706,1708039846701,-592.75,0.00022465,2]
[314168707,1708039846710,-500.0,0.00022465,2]
[314168708,1708039846719,-500.0,0.00022465,2]
[314168709,1708039846728,-369.93223796,0.00022465,2]
[314168710,1708039846737,-500.0,0.00022465,2]
[314168711,1708039846745,-298.23799398,0.00022465,2]
[314168712,1708039846754,-582.91,0.00022465,2]
[314168713,1708039846763,-500.0,0.00022465,2]
[314168715,1708039846772,-170.30471126,0.00022465,2]
[314168717,1708039846781,-500.0,0.00022465,2]
[314168719,1708039846790,-500.0,0.00022465,2]
[314168721,1708039846799,-901.11,0.00022465,2]
[314168723,1708039846810,-2059.32,0.00022465,2]
[314168725,1708039846819,-500.0,0.00022465,2]
[314168727,1708039846828,-500.0,0.00022465,2]
[314168729,1708039846837,-500.0,0.00022465,2]
[314168731,1708039846847,-719.02,0.00022465,2]
[314168733,1708039846856,-500.0,0.00022465,2]
[314168735,1708039846865,-981.92,0.00022465,2]
[314168737,1708039846874,-599.09177149,0.00022465,5]
[314168739,1708039846884,-500.0,0.00022465,2]
[314168741,1708039846893,-500.0,0.00022465,2]
[314168743,1708039846904,-514.30150102,0.00022465,2]
[314168745,1708039846912,-503.52195286,0.00022465,2]
[314168747,1708039846922,-514.74520336,0.00022465,2]
[314168749,1708039846933,-500.0,0.00022465,2]
[314168751,1708039846942,-500.0,0.00022465,2]
[314168753,1708039846951,-648.0,0.00022465,2]
[314168755,1708039846961,-500.0,0.00022465,2]
[314168757,1708039846970,-500.0,0.00022465,2]
[314168759,1708039846979,-500.0,0.00022465,2]
[314168761,1708039846989,-574.71904544,0.00022465,2]
[314168763,1708039846998,-1947.81,0.00022465,2]
[314168765,1708039847007,-500.0,0.00022465,2]
[314168767,1708039847016,-500.0,0.00022465,2]
[314168769,1708039847025,-989.49,0.00022465,2]
[314168771,1708039847034,-500.0,0.00022465,2]
[314168773,1708039847043,-500.0,0.00022465,2]
[314168775,1708039847053,-500.0,0.00022465,2]
[314168777,1708039847061,-466.3663281,0.00022465,2]
[314168779,1708039847071,-526.15947414,0.00022465,2]
[314168781,1708039847080,-500.0,0.00022465,2]
[314168783,1708039847089,-746.79,0.00022465,2]
[314168785,1708039847099,-500.0,0.00022465,2]
[314168787,1708039847108,-500.0,0.00022465,2]
[314168794,1708039847166,-500.0,0.00022465,2]
[314168796,1708039847175,-500.0,0.00022465,2]
[314168798,1708039847184,-600.56,0.00022465,2]
[314168800,1708039847197,-1109.46,0.00022465,2]
[314168802,1708039847206,-710.56,0.00022465,2]
[314168804,1708039847215,-456.89557204,0.00022465,2]
[314168806,1708039847225,-660.38,0.00022465,2]
[314168808,1708039847234,-500.0,0.00022465,2]
[314168810,1708039847243,-894.98,0.00022465,2]
[314168812,1708039847252,-500.0,0.00022465,2]
[314168814,1708039847261,-688.57,0.00022465,2]
[314168816,1708039847272,-500.0,0.00022465,2]
[314168818,1708039847282,-244.73131718,0.00022465,2]
[314168820,1708039847291,-500.0,0.00022465,2]
[314168822,1708039847300,-624.8,0.00022465,2]
[314168824,1708039847310,-500.0,0.00022465,2]
[314168826,1708039847319,-500.0,0.00022465,2]
[314168828,1708039847328,-500.0,0.00022465,2]
[314168830,1708039847338,-500.0,0.00022465,2]
[314168832,1708039847347,-500.0,0.00022465,2]
[314168834,1708039847357,-500.0,0.00022465,2]
[314168836,1708039847369,-9426.82,0.00022465,2]
[314168838,1708039847379,-180.42367986,0.00022465,2]
[314168840,1708039847389,-1254.76,0.00022465,2]
[314168842,1708039847399,-3723.72,0.00022465,2]
[314168844,1708039847409,-11278.95,0.00022465,2]
[314168846,1708039847419,-500.0,0.00022465,2]
[314168848,1708039847429,-609.52,0.00022465,2]
[314168850,1708039847438,-3953.53,0.00022465,2]
[314168852,1708039847447,-4014.11,0.00022465,2]
[314168854,1708039847458,-500.0,0.00022465,2]
[314168856,1708039847467,-500.0,0.00022465,2]
[314168858,1708039847478,-1967.44,0.00022465,2]
[314168860,1708039847488,-500.0,0.00022465,2]
[314168862,1708039847498,-3098.38,0.00022465,2]
[314168864,1708039847508,-2101.9,0.00022465,2]
[314168866,1708039847518,-14803.19,0.00022465,2]
[314168868,1708039847529,-2147.48,0.00022465,2]
[314168870,1708039847538,-500.0,0.00022465,2]
[314168873,1708039847552,-500.0,0.00022465,2]
[314168876,1708039847575,-500.0,0.00022465,2]
[314168879,1708039847591,-500.0,0.00022465,2]
[314168882,1708039847610,-1478.7,0.00022465,2]
[314168885,1708039847630,-1000.0,0.00022465,2]
[314168888,1708039847647,-500.0,0.00022465,2]
[314168891,1708039847665,-500.0,0.00022465,2]
[314168894,1708039847680,-500.0,0.00022465,2]
[314168897,1708039847699,-947.27,0.00022465,2]
[314168900,1708039847716,-500.0,0.00022465,2]
[314168903,1708039847734,-2918.8,0.00022465,2]
[314168906,1708039847755,-500.0,0.00022465,2]
[314168909,1708039847772,-3326.07,0.00022465,2]
[314168911,1708039847785,-500.0,0.00022465,2]
[314168914,1708039847804,-500.0,0.00022465,2]
[314168917,1708039847820,-500.0,0.00022465,2]
[314168919,1708039847834,-500.0,0.00022465,2]
[314168922,1708039847849,-500.0,0.00022465,2]
[314168924,1708039847863,-500.0,0.00022465,2]
[314168927,1708039847879,-1425.62,0.00022465,2]
[314168930,1708039847893,-500.0,0.00022465,2]
[314168932,1708039847906,-10146.40934829,0.00022465,2]
[314168935,1708039847927,-734.27655753,0.00022465,2]
[314168938,1708039847944,-2105.99456091,0.00022465,2]
[314170615,1708041032334,-155.25057701,0.00019765,2]
[314170617,1708041032345,-155.01395126,0.00020118,2]
[314170618,1708041032354,-153.2345674,0.00020119,2]
[314170619,1708041032363,-5282.99017836,0.00020272,2]
[314170620,1708041032372,-24900.0,0.00020273,2]
[314170621,1708041032381,-321.73660799,0.00020666,2]
[314170622,1708041032390,-200.0,0.00020766,2]
[314170623,1708041032399,-200.0,0.00020766,2]
[314170624,1708041032407,-168.809424,0.00021542,2]
[314170625,1708041032416,-169.890415,0.00021542,2]
[314170626,1708041032425,-160.639964,0.00021816,2]
[314170627,1708041032433,-1087.62754422,0.00021816,2]
[314170628,1708041032442,-1087.62754422,0.0002186,2]
[314170629,1708041032450,-1087.62754422,0.00021904,2]
[314170630,1708041032459,-16997.57,0.00021906,3]
[314170631,1708041032468,-14164.64,0.00021906,3]
[314170632,1708041032476,-1426.6220726,0.00021906,3]
[314170633,1708041032488,-10377.2479274,0.00021906,3]
[314170634,1708041032497,-367.5397419,0.00021914,2]
[314170635,1708041032506,-250.0,0.00021915,2]
[314170636,1708041032514,-2.52040508,0.00021916,2]
[314170673,1708041039307,-1703.53825539,0.00021896,3]
[314170675,1708041039319,-1521.62343863,0.00021896,3]
[314170678,1708041039331,-260.29428997,0.00021896,3]
[314170696,1708041039503,-684.38823873,0.00021896,3]
[314170699,1708041039515,-2597.05,0.00021896,3]
[314170701,1708041039526,-493.45707157,0.00021896,3]
[314170703,1708041039538,-2576.20870571,0.00021896,3]
[314170705,1708041039549,-166.5098615,0.00021916,2]
[314170707,1708041039561,-1142.07465602,0.00021916,2]
[314170710,1708041039570,-500.0,0.00021916,2]
[314170711,1708041039579,-500.0,0.00021916,2]
[314170713,1708041039588,-205.2063546,0.00021916,2]
[314170715,1708041039598,-500.0,0.00021916,2]
[314170717,1708041039607,-1142.07465602,0.00021916,2]
[314170719,1708041039616,-1142.07465602,0.00021916,2]
[314170721,1708041039625,-442.90461517,0.00021916,2]
[314170723,1708041039635,-489.4518902,0.00021916,2]
[314170725,1708041039645,-1142.07465602,0.00021916,2]
[314170727,1708041039654,-1142.07465602,0.00021916,2]
[314170729,1708041039663,-1142.07465602,0.00021916,2]
[314170731,1708041039672,-1142.07465602,0.00021916,2]
[314170733,1708041039681,-1142.07465602,0.00021916,2]
[314170735,1708041039691,-1142.07465602,0.00021916,2]
[314170737,1708041039700,-1142.07465602,0.00021916,2]
[314170739,1708041039708,-1142.07465602,0.00021916,2]
[314170741,1708041039717,-1142.07465602,0.00021916,2]
[314170743,1708041039726,-1142.07465602,0.00021916,2]
[314170745,1708041039735,-1142.07465602,0.00021916,2]
[314170747,1708041039744,-1142.07465602,0.00021916,2]
[314170749,1708041039753,-1142.07465602,0.00021916,2]
[314170751,1708041039762,-1142.07465602,0.00021916,2]
[314170753,1708041039771,-1142.07465602,0.00021916,2]
[314170754,1708041039780,-1142.07465602,0.00021916,2]
[314170755,1708041039789,-1142.07465602,0.00021916,2]
[314170756,1708041039798,-1142.07465602,0.00021916,2]
[314170757,1708041039806,-1142.07465602,0.00021916,2]
[314170758,1708041039816,-1142.07465602,0.00021916,2]
[314170759,1708041039825,-1142.07465602,0.00021916,2]
[314170760,1708041039834,-1142.07465602,0.00021916,2]
[314170761,1708041039844,-1142.07465602,0.00021916,2]
[314170762,1708041039853,-1142.07465602,0.00021916,2]
[314170763,1708041039862,-1142.07465602,0.00021916,2]
[314170764,1708041039871,-1142.07465602,0.00021916,2]
[314170765,1708041039881,-1142.07465602,0.00021916,2]
[314170766,1708041039890,-1142.07465602,0.00021916,2]
[314170767,1708041039899,-1142.07465602,0.00021916,2]
[314170768,1708041039908,-1142.07465602,0.00021916,2]
[314170769,1708041039917,-1142.07465602,0.00021916,2]
[314170770,1708041039927,-1142.07465602,0.00021916,2]
[314170771,1708041039936,-1142.07465602,0.00021916,2]
[314170772,1708041039946,-1142.07465602,0.00021916,2]
[314170773,1708041039955,-1142.07465602,0.00021916,2]
[314170774,1708041039965,-1142.07465602,0.00021916,2]
[314170775,1708041039974,-1142.07465602,0.00021916,2]
[314170776,1708041039983,-1142.07465602,0.00021916,2]
[314170777,1708041039993,-1142.07465602,0.00021916,2]
[314170778,1708041040002,-1142.07465602,0.00021916,2]
[314170779,1708041040011,-1142.07465602,0.00021916,2]
[314170780,1708041040021,-1142.07465602,0.00021916,2]
[314170781,1708041040030,-1142.07465602,0.00021916,2]
[314170782,1708041040041,-1142.07465602,0.00021916,2]
[314170783,1708041040052,-1142.07465602,0.00021916,2]
[314170784,1708041040062,-1142.07465602,0.00021916,2]
[314170785,1708041040071,-1142.07465602,0.00021916,2]
[314170786,1708041040080,-1142.07465602,0.00021916,2]
[314170787,1708041040089,-1142.07465602,0.00021916,2]
[314170788,1708041040097,-1142.07465602,0.00021916,2]
[314170789,1708041040105,-1142.07465602,0.00021916,2]
[314170790,1708041040114,-1142.07465602,0.00021916,2]
[314170791,1708041040123,-1142.07465602,0.00021916,2]
[314170792,1708041040132,-1142.07465602,0.00021916,2]
[314170793,1708041040142,-1142.07465602,0.00021916,2]
[314170794,1708041040151,-1142.07465602,0.00021916,2]
[314170795,1708041040160,-1142.07465602,0.00021916,2]
[314170796,1708041040170,-1142.07465602,0.00021916,2]
[314170797,1708041040179,-1142.07465602,0.00021916,2]
[314170798,1708041040188,-1142.07465602,0.00021916,2]
[314170799,1708041040198,-1142.07465602,0.00021916,2]
[314170800,1708041040207,-2108.33529383,0.00021916,2]
[314170801,1708041040216,-2108.33529383,0.00021916,2]
[314170802,1708041040226,-2108.33529383,0.00021916,2]
[314170803,1708041040235,-2108.33529383,0.00021916,2]
[314170804,1708041040245,-2108.33529383,0.00021916,2]
[314170805,1708041040254,-2108.33529383,0.00021916,2]
[314170806,1708041040263,-2108.33529383,0.00021916,2]
[314170807,1708041040273,-2108.33529383,0.00021916,2]
[314170808,1708041040282,-2108.33529383,0.00021916,2]
[314170809,1708041040292,-2108.33529383,0.00021916,2]
[314170810,1708041040301,-2108.33529383,0.00021916,2]
[314170811,1708041040311,-2108.33529383,0.00021916,2]
[314170812,1708041040320,-2108.33529383,0.00021916,2]
[314170813,1708041040329,-2108.33529383,0.00021916,2]
[314170814,1708041040338,-2108.33529383,0.00021916,2]
[314170815,1708041040347,-2108.33529383,0.00021916,2]
[314170816,1708041040356,-2108.33529383,0.00021916,2]
[314170817,1708041040366,-2108.33529383,0.00021916,2]
[314170818,1708041040375,-2108.33529383,0.00021916,2]
[314170819,1708041040384,-2108.33529383,0.00021916,2]
[314170820,1708041040395,-2108.33529383,0.00021916,2]
[314170821,1708041040404,-2108.33529383,0.00021916,2]
[314170822,1708041040414,-2108.33529383,0.00021916,2]
[314170823,1708041040423,-2108.33529383,0.00021916,2]
[314170824,1708041040432,-2108.33529383,0.00021916,2]
[314170825,1708041040441,-500.0,0.00021916,2]
[314170826,1708041040450,-500.0,0.00021916,2]
[314170827,1708041040460,-500.0,0.00021916,2]
[314170828,1708041040470,-500.0,0.00021916,2]
[314170829,1708041040479,-500.0,0.00021916,2]
[314170830,1708041040488,-562.1714723,0.00021916,2]
[314170831,1708041040497,-500.0,0.00021916,2]
[314170832,1708041040507,-500.0,0.00021916,2]
[314170833,1708041040516,-500.0,0.00021916,2]
[314170834,1708041040525,-500.0,0.00021916,2]
[314170835,1708041040534,-500.0,0.00021916,2]
[314170836,1708041040544,-500.0,0.00021916,2]
[314170837,1708041040554,-500.0,0.00021916,2]
[314170838,1708041040565,-500.0,0.00021916,2]
[314170839,1708041040574,-500.0,0.00021916,2]
[314170840,1708041040583,-500.0,0.00021916,2]
[314170841,1708041040593,-500.0,0.00021916,2]
[314170842,1708041040602,-500.0,0.00021916,2]
[314170843,1708041040611,-500.0,0.00021916,2]
[314170844,1708041040620,-500.0,0.00021916,2]
[314170845,1708041040629,-500.0,0.00021916,2]
[314170846,1708041040640,-500.0,0.00021916,2]
[314170847,1708041040650,-500.0,0.00021916,2]
[314170848,1708041040659,-500.0,0.00021916,2]
[314170849,1708041040668,-555.06701185,0.00021916,2]
[314170850,1708041040677,-500.0,0.00021916,2]
[314170851,1708041040686,-500.0,0.00021916,2]
[314170852,1708041040695,-500.0,0.00021916,2]
[314170853,1708041040704,-500.0,0.00021916,2]
[314170854,1708041040713,-500.0,0.00021916,2]
[314170855,1708041040722,-500.0,0.00021916,2]
[314170856,1708041040731,-500.0,0.00021916,2]
[314170857,1708041040741,-500.0,0.00021916,2]
[314170858,1708041040749,-500.0,0.00021916,2]
[314170859,1708041040821,-500.0,0.00021916,2]
[314170860,1708041040832,-500.0,0.00021916,2]
[314170861,1708041040843,-500.0,0.00021916,2]
[314170862,1708041040853,-500.0,0.00021916,2]
[314170863,1708041040862,-300.0,0.00021916,2]
[314170864,1708041040873,-486.14153652,0.00021916,2]
[314170865,1708041040883,-521.27239921,0.00021916,2]
[314170866,1708041040894,-217.58507873,0.00021916,2]
[314170867,1708041040903,-500.0,0.00021916,2]
[314170868,1708041040912,-500.0,0.00021916,2]
[314170869,1708041040924,-500.0,0.00021916,2]
[314170870,1708041040933,-500.0,0.00021916,2]
[314170871,1708041040943,-500.0,0.00021916,2]
[314170872,1708041040952,-500.0,0.00021916,2]
[314170873,1708041040960,-500.0,0.00021916,2]
[314170874,1708041040970,-500.0,0.00021916,2]
[314170875,1708041040980,-301.58992803,0.00021916,2]
[314170876,1708041040989,-500.0,0.00021916,2]
[314170877,1708041040999,-500.0,0.00021916,2]
[314170878,1708041041009,-500.0,0.00021917,2]
[314170879,1708041041019,-500.0,0.00021917,2]
[314170880,1708041041028,-500.0,0.00021917,2]
[314170881,1708041041039,-500.0,0.00021917,2]
[314170882,1708041041048,-500.0,0.00021917,2]
[314170883,1708041041058,-519.75741861,0.00021917,2]
[314170884,1708041041067,-500.0,0.00021917,2]
[314170885,1708041041076,-396.51386456,0.00021917,2]
[314170886,1708041041086,-500.0,0.00021917,2]
[314170887,1708041041096,-502.92013251,0.00021917,2]
[314170888,1708041041106,-500.0,0.00021917,2]
[314170889,1708041041115,-500.0,0.00021917,2]
[314170890,1708041041125,-543.36,0.00021917,2]
[314170891,1708041041135,-500.0,0.00021917,2]
[314170892,1708041041145,-589.57474798,0.00021917,2]
[314170893,1708041041155,-513.49465478,0.00021917,2]
[314170894,1708041041164,-500.0,0.00021917,2]
[314170895,1708041041174,-500.0,0.00021917,2]
[314170896,1708041041183,-500.0,0.00021917,2]
[314170897,1708041041192,-347.51683518,0.00021917,2]
[314170898,1708041041201,-500.0,0.00021917,2]
[314170899,1708041041211,-500.0,0.00021917,2]
[314170900,1708041041219,-500.0,0.00021917,2]
[314170901,1708041041229,-500.0,0.00021917,2]
[314170902,1708041041239,-500.0,0.00021917,2]
[314170903,1708041041249,-826.02,0.00021917,2]
[314170904,1708041041260,-500.0,0.00021917,2]
[314170905,1708041041269,-500.0,0.00021917,2]
[314170906,1708041041278,-544.4013891,0.00021917,2]
[314170907,1708041041288,-622.63376285,0.00021917,2]
[314170908,1708041041297,-500.0,0.00021917,2]
[314170909,1708041041307,-500.0,0.00021917,2]
[314170910,1708041041316,-500.0,0.00021917,2]
[314170911,1708041041326,-659.1,0.00021917,2]
[314170912,1708041041335,-500.0,0.00021917,2]
[314170913,1708041041344,-507.50151569,0.00021917,2]
[314170914,1708041041354,-500.0,0.00021917,2]
[314170915,1708041041364,-500.0,0.00021917,2]
[314170916,1708041041374,-500.0,0.00021917,2]
[314170917,1708041041383,-500.0,0.00021917,2]
[314170918,1708041041393,-511.75666933,0.00021917,2]
[314170919,1708041041403,-500.0,0.00021917,2]
[314170920,1708041041412,-500.0,0.00021917,2]
[314170921,1708041041422,-507.21096205,0.00021917,2]
[314170922,1708041041432,-437.52618809,0.00021917,2]
[314170923,1708041041441,-260.37284919,0.00021917,2]
[314170924,1708041041450,-506.84728892,0.00021917,2]
[314170925,1708041041460,-504.12580923,0.00021917,2]
[314170926,1708041041471,-500.0,0.00021917,2]
[314170927,1708041041481,-328.32247603,0.00021917,2]
[314170928,1708041041490,-605.37,0.00021917,2]
[314170929,1708041041500,-500.0,0.00021917,2]
[314170930,1708041041509,-500.0,0.00021917,2]
[314170931,1708041041519,-500.0,0.00021917,2]
[314170932,1708041041528,-501.76829055,0.00021917,2]
[314170933,1708041041537,-516.26871262,0.00021917,2]
[314170934,1708041041547,-500.0,0.00021917,2]
[314170935,1708041041556,-1998.38,0.00021917,2]
[314170936,1708041041569,-680.95,0.00021917,2]
[314170937,1708041041578,-500.0,0.00021917,2]
[314170938,1708041041587,-500.0,0.00021917,2]
[314170939,1708041041596,-510.68739051,0.00021917,2]
[314170940,1708041041606,-516.39323085,0.00021917,2]
[314170941,1708041041615,-500.0,0.00021917,2]
[314170942,1708041041624,-500.0,0.00021917,2]
[314170943,1708041041633,-164.95275366,0.00021917,2]
[314170944,1708041041645,-500.0,0.00021917,2]
[314170945,1708041041654,-3358.91,0.00021917,2]
[314170946,1708041041664,-500.0,0.00021917,2]
[314170947,1708041041673,-500.0,0.00021917,2]
[314170948,1708041041682,-505.49748624,0.00021917,2]
[314170949,1708041041690,-500.0,0.00021917,2]
[314170950,1708041041699,-413.84859756,0.00021917,2]
[314170951,1708041041708,-500.0,0.00021917,2]
[314170952,1708041041718,-500.0,0.00021917,2]
[314170953,1708041041727,-500.0,0.00021917,2]
[314170954,1708041041736,-500.0,0.00021917,2]
[314170955,1708041041745,-500.0,0.00021917,2]
[314170956,1708041041754,-500.0,0.00021917,2]
[314170957,1708041041764,-500.0,0.00021917,2]
[314170958,1708041041773,-500.0,0.00021917,2]
[314170959,1708041041782,-500.0,0.00021917,2]
[314170960,1708041041791,-500.0,0.00021917,2]
[314170961,1708041041800,-500.0,0.00021917,2]
[314170962,1708041041808,-500.0,0.00021917,2]
[314170963,1708041041817,-500.0,0.00021917,2]
[314170964,1708041041826,-500.0,0.00021917,2]
[314170965,1708041041835,-500.0,0.00021917,2]
[314170966,1708041041844,-500.0,0.00021917,2]
[314170967,1708041041852,-500.0,0.00021917,2]
[314170968,1708041041861,-500.0,0.00021917,2]
[314170969,1708041041869,-500.0,0.00021917,2]
[314170970,1708041041878,-567.84500468,0.00021917,2]
[314170971,1708041041886,-505.61326552,0.00021917,2]
[314170972,1708041041897,-500.0,0.00021917,2]
[314170973,1708041041906,-500.0,0.00021917,2]
[314170974,1708041041915,-632.87,0.00021917,2]
[314170975,1708041041924,-500.0,0.00021917,2]
[314170976,1708041041933,-511.35561246,0.00021917,2]